{"text_format":"1","workbook":"xlsx","n_sheets":2,"sheets":["League Table","Scores"],"not_rendered":{"charts":0,"images":0,"macros":1,"external_links":0,"defined_names":2,"comments":0,"pivot_tables":0},"unopened":[],"bounds":{"document_bytes":16777216,"sheet_cells":100000,"rows_first":2000,"rows_last":500,"rows_between":2000,"halvings":0,"cell_chars":16384,"cell_head_chars":4096},"cells_cut":0,"cells_raw":0,"read":"whole","date_system":"1900"}

{"sheet":"League Table","index":0,"n_rows":42,"n_cols":8,"rows_kept":42,"cut":false,"hidden":false,"merged":[[0,0,0,7]]}
["LEAGUE TABLE"]
["Position","Name","Played","Out","Good","Sat","U","Score"]
[{"$f":"IF(B3=\"\",\"\",\"1st\")","v":"1st"},"Anita GRANADOS",16,16,0,0,0,64]
[{"$f":"IF(B4=\"\",\"\",\"2nd\")","v":"2nd"},"Angelica GOLD",17,15,0,0,2,62]
[{"$f":"IF(B5=\"\",\"\",\"3rd\")","v":"3rd"},"Becky DENNEY",15,15,0,0,0,60]
[{"$f":"IF(B6=\"\",\"\",\"4th\")","v":"4th"},"Benjamin ATWELL",14,14,0,0,0,56]
[{"$f":"IF(B7=\"\",\"\",\"5th\")","v":"5th"},"Daisy MONIZ",12,12,0,0,0,48]
[{"$f":"IF(B8=\"\",\"\",\"6th\")","v":"6th"},"Brandon BURNETTE",13,11,0,2,0,48]
[{"$f":"IF(B9=\"\",\"\",\"7th\")","v":"7th"},"Diane METZ",11,11,0,0,0,44]
[{"$f":"IF(B10=\"\",\"\",\"8th\")","v":"8th"},"Donald RUSS",10,10,0,0,0,40]
[{"$f":"IF(B11=\"\",\"\",\"9th\")","v":"9th"},"Fred ROOKS",9,9,0,0,0,36]
[{"$f":"IF(B12=\"\",\"\",\"10th\")","v":"10th"},"Gertrude DICKENSON",8,8,0,0,0,32]
[{"$f":"IF(B13=\"\",\"\",\"11th\")","v":"11th"},"Harry LINDLEY",7,7,0,0,0,28]
[{"$f":"IF(B14=\"\",\"\",\"12th\")","v":"12th"},"Keith OWENS",6,6,0,0,0,24]
[{"$f":"IF(B15=\"\",\"\",\"13th\")","v":"13th"},"Krista CORSO",5,5,0,0,0,20]
[{"$f":"IF(B16=\"\",\"\",\"14th\")","v":"14th"},"Louis SIGMAN",5,5,0,0,0,20]
[{"$f":"IF(B17=\"\",\"\",\"15th\")","v":"15th"},"Manoj MISTRY",4,4,0,0,0,16]
[{"$f":"IF(B18=\"\",\"\",\"16th\")","v":"16th"},"Marvin LAIL",4,3,1,0,0,15]
[{"$f":"IF(B19=\"\",\"\",\"17th\")","v":"17th"},"Mildred SANDLIN",4,3,0,1,0,14]
[{"$f":"IF(B20=\"\",\"\",\"18th\")","v":"18th"},"Philip GEIST",4,3,0,0,1,13]
[{"$f":"IF(B21=\"\",\"\",\"19th\")","v":"19th"},"Raymond NEGRON",3,3,0,0,0,12]
[{"$f":"IF(B22=\"\",\"\",\"20th\")","v":"20th"},"Warwick Sayers",4,0,4,0,0,12]
[{"$f":"IF(B23=\"\",\"\",\"21st\")","v":"21st"},"Robert MCFARLIN",3,2,1,0,0,11]
[{"$f":"IF(B24=\"\",\"\",\"22nd\")","v":"22nd"},"Roy ARENAS",3,2,0,1,0,10]
[{"$f":"IF(B25=\"\",\"\",\"23rd\")","v":"23rd"},"Russell PETERS",3,2,0,0,1,9]
[{"$f":"IF(B26=\"\",\"\",\"24th\")","v":"24th"},"Jumble SALE",3,0,3,0,0,9]
[{"$f":"IF(B27=\"\",\"\",\"25th\")","v":"25th"},"Russell BILLIOT",2,2,0,0,0,8]
[{"$f":"IF(B28=\"\",\"\",\"26th\")","v":"26th"},"Jon KEATS",2,1,1,0,0,7]
[{"$f":"IF(B29=\"\",\"\",\"27th\")","v":"27th"},"Kuty RUSTAMOVA",2,1,0,1,0,6]
[{"$f":"IF(B30=\"\",\"\",\"28th\")","v":"28th"},"Inita SMITH",2,0,2,0,0,6]
[{"$f":"IF(B31=\"\",\"\",\"29th\")","v":"29th"},"Munchkin MOUSE",3,0,0,3,0,6]
[{"$f":"IF(B32=\"\",\"\",\"30th\")","v":"30th"},"Tanya STEAD",2,1,0,0,1,5]
[{"$f":"IF(B33=\"\",\"\",\"31st\")","v":"31st"},"John PIPE",1,1,0,0,0,4]
[{"$f":"IF(B34=\"\",\"\",\"32nd\")","v":"32nd"},"Steve BEATON",1,1,0,0,0,4]
[{"$f":"IF(B35=\"\",\"\",\"33rd\")","v":"33rd"},"Bob HOLDER",2,0,0,2,0,4]
[{"$f":"IF(B36=\"\",\"\",\"34th\")","v":"34th"},"Junior YEW",1,0,1,0,0,3]
[{"$f":"IF(B37=\"\",\"\",\"35th\")","v":"35th"},"Jason DERULO",1,0,1,0,0,3]
[{"$f":"IF(B38=\"\",\"\",\"36th\")","v":"36th"},"Johnston TERRY",1,0,1,0,0,3]
[{"$f":"IF(B39=\"\",\"\",\"37th\")","v":"37th"},"Dingle ROSS",1,0,0,1,0,2]
[{"$f":"IF(B40=\"\",\"\",\"38th\")","v":"38th"},"Jimmy PEUX",1,0,0,1,0,2]
[{"$f":"IF(B41=\"\",\"\",\"39th\")","v":"39th"},"Betty DAVIS",1,0,0,1,0,2]
[{"$f":"IF(B42=\"\",\"\",\"40th\")","v":"40th"},"Meerkat MENACE",1,0,0,0,1,1]

{"sheet":"Scores","index":1,"n_rows":42,"n_cols":271,"rows_kept":42,"cut":false,"hidden":false,"merged":[[0,8,0,12],[0,14,0,18],[0,20,0,24],[0,0,0,1],[0,3,0,4],[0,6,0,7],[0,92,0,96],[0,26,0,30],[0,32,0,36],[0,38,0,42],[0,44,0,48],[0,50,0,54],[0,56,0,60],[0,62,0,66],[0,68,0,72],[0,74,0,78],[0,80,0,84],[0,86,0,90],[0,164,0,168],[0,98,0,102],[0,104,0,108],[0,110,0,114],[0,116,0,120],[0,122,0,126],[0,128,0,132],[0,134,0,138],[0,140,0,144],[0,146,0,150],[0,152,0,156],[0,158,0,162],[0,236,0,240],[0,170,0,174],[0,176,0,180],[0,182,0,186],[0,188,0,192],[0,194,0,198],[0,200,0,204],[0,206,0,210],[0,212,0,216],[0,218,0,222],[0,224,0,228],[0,230,0,234],[0,242,0,246],[0,248,0,252],[0,254,0,258],[0,260,0,264],[0,266,0,270]]}
["Class 11A1/4 LEAGUE TABLE",null,null,"Mr Mistry",null,null,"Room B6",null,"W/B Monday 5/9/2011",null,null,null,null,null,"W/B Monday 12/9/2011",null,null,null,null,null,"W/B Monday 19/9/2011",null,null,null,null,null,"W/B Monday 26/9/2011",null,null,null,null,null,"W/B Monday 3/10/2011",null,null,null,null,null,"W/B Monday 10/10/2011",null,null,null,null,null,"W/B Monday 17/10/2011",null,null,null,null,null,"W/B Monday 24/10/2011",null,null,null,null,null,"W/B Monday 31/10/2011",null,null,null,null,null,"W/B Monday 7/11/2011",null,null,null,null,null,"W/B Monday 14/11/2011",null,null,null,null,null,"W/B Monday 21/11/2011",null,null,null,null,null,"W/B Monday 28/11/2011",null,null,null,null,null,"W/B Monday 5/12/2011",null,null,null,null,null,"W/B Monday 12/12/2011",null,null,null,null,null,"W/B Monday 2/1/2012",null,null,null,null,null,"W/B Monday 9/1/2012",null,null,null,null,null,"W/B Monday 16/1/2012",null,null,null,null,null,"W/B Monday 23/1/2012",null,null,null,null,null,"W/B Monday 30/1/2012",null,null,null,null,null,"W/B Monday 6/2/2012",null,null,null,null,null,"W/B Monday 13/2/2012",null,null,null,null,null,"W/B Monday 20/2/2012",null,null,null,null,null,"W/B Monday 27/2/2012",null,null,null,null,null,"W/B Monday 5/3/2012",null,null,null,null,null,"W/B Monday 12/3/2012",null,null,null,null,null,"W/B Monday 19/3/2012",null,null,null,null,null,"W/B Monday 26/3/2012",null,null,null,null,null,"W/B Monday 2/4/2012",null,null,null,null,null,"W/B Monday 9/4/2012",null,null,null,null,null,"W/B Monday 16/4/2012",null,null,null,null,null,"W/B Monday 23/4/2012",null,null,null,null,null,"W/B Monday 30/4/2012",null,null,null,null,null,"W/B Monday 7/5/2012",null,null,null,null,null,"W/B Monday 14/5/2012",null,null,null,null,null,"W/B Monday 21/5/2012",null,null,null,null,null,"W/B Monday 28/5/2012",null,null,null,null,null,"W/B Monday 4/6/2012",null,null,null,null,null,"W/B Monday 11/6/2012",null,null,null,null,null,"W/B Monday 18/6/2012",null,null,null,null,null,"W/B Monday 25/6/2012",null,null,null,null,null,"W/B Monday 2/7/2012",null,null,null,null,null,"W/B Monday 9/7/2012",null,null,null,null,null,"W/B Monday 16/7/2012"]
["    Average","Name","Played","Out","Good","Sat","U","Score","Behaviour","Completing tasks set","Presentation","Progress","Out of class help",null,"Behaviour","Completing tasks set","Presentation","Progress","Out of class help",null,"Behaviour","Completing tasks set","Presentation","Progress","Out of class help",null,"Behaviour","Completing tasks set","Presentation","Progress","Out of class help",null,"Behaviour","Completing tasks set","Presentation","Progress","Out of class help",null,"Behaviour","Completing tasks set","Presentation","Progress","Out of class help",null,"Behaviour","Completing tasks set","Presentation","Progress","Out of class help",null,"Behaviour","Completing tasks set","Presentation","Progress","Out of class help",null,"Behaviour","Completing tasks set","Presentation","Progress","Out of class help",null,"Behaviour","Completing tasks set","Presentation","Progress","Out of class help",null,"Behaviour","Completing tasks set","Presentation","Progress","Out of class help",null,"Behaviour","Completing tasks set","Presentation","Progress","Out of class help",null,"Behaviour","Completing tasks set","Presentation","Progress","Out of class help",null,"Behaviour","Completing tasks set","Presentation","Progress","Out of class help",null,"Behaviour","Completing tasks set","Presentation","Progress","Out of class help",null,"Behaviour","Completing tasks set","Presentation","Progress","Out of class help",null,"Behaviour","Completing tasks set","Presentation","Progress","Out of class help",null,"Behaviour","Completing tasks set","Presentation","Progress","Out of class help",null,"Behaviour","Completing tasks set","Presentation","Progress","Out of class help",null,"Behaviour","Completing tasks set","Presentation","Progress","Out of class help",null,"Behaviour","Completing tasks set","Presentation","Progress","Out of class help",null,"Behaviour","Completing tasks set","Presentation","Progress","Out of class help",null,"Behaviour","Completing tasks set","Presentation","Progress","Out of class help",null,"Behaviour","Completing tasks set","Presentation","Progress","Out of class help",null,"Behaviour","Completing tasks set","Presentation","Progress","Out of class help",null,"Behaviour","Completing tasks set","Presentation","Progress","Out of class help",null,"Behaviour","Completing tasks set","Presentation","Progress","Out of class help",null,"Behaviour","Completing tasks set","Presentation","Progress","Out of class help",null,"Behaviour","Completing tasks set","Presentation","Progress","Out of class help",null,"Behaviour","Completing tasks set","Presentation","Progress","Out of class help",null,"Behaviour","Completing tasks set","Presentation","Progress","Out of class help",null,"Behaviour","Completing tasks set","Presentation","Progress","Out of class help",null,"Behaviour","Completing tasks set","Presentation","Progress","Out of class help",null,"Behaviour","Completing tasks set","Presentation","Progress","Out of class help",null,"Behaviour","Completing tasks set","Presentation","Progress","Out of class help",null,"Behaviour","Completing tasks set","Presentation","Progress","Out of class help",null,"Behaviour","Completing tasks set","Presentation","Progress","Out of class help",null,"Behaviour","Completing tasks set","Presentation","Progress","Out of class help",null,"Behaviour","Completing tasks set","Presentation","Progress","Out of class help",null,"Behaviour","Completing tasks set","Presentation","Progress","Out of class help",null,"Behaviour","Completing tasks set","Presentation","Progress","Out of class help",null,"Behaviour","Completing tasks set","Presentation","Progress","Out of class help",null,"Behaviour","Completing tasks set","Presentation","Progress","Out of class help",null,"Behaviour","Completing tasks set","Presentation","Progress","Out of class help"]
[{"$f":"H3/C3","v":3.6470588235294117},"Angelica GOLD",{"$f":"263-COUNTIF(I3:JK3,\"\")","v":17},{"$f":"COUNTIF($I3:$JK3,D$2)","v":15},{"$f":"COUNTIF($I3:$JK3,E$2)","v":0},{"$f":"COUNTIF($I3:$JK3,F$2)","v":0},{"$f":"COUNTIF($I3:$JK3,G$2)","v":2},{"$f":"D3*4+E3*3+F3*2+G3","v":62},"U","U","Out","Out","Out",null,"Out","Out","Out","Out","Out",null,"Out","Out","Out","Out","Out",null,"Out","Out"]
[4,"Anita GRANADOS",{"$f":"263-COUNTIF(I4:JK4,\"\")","v":16},{"$f":"COUNTIF($I4:$JK4,D$2)","v":16},0,0,0,{"$f":"D4*4+E4*3+F4*2+G4","v":64},"Out","Out","Out","Out","Out",null,"Out","Out","Out","Out","Out",null,"Out","Out","Out","Out","Out",null,"Out"]
[4,"Becky DENNEY",15,15,0,0,0,60,"Out","Out","Out","Out","Out",null,"Out","Out","Out","Out","Out",null,"Out","Out","Out","Out","Out"]
[4,"Benjamin ATWELL",14,14,0,0,0,56,"Out","Out","Out","Out","Out",null,"Out","Out","Out","Out","Out",null,"Out","Out","Out","Out"]
[3.6923076923076925,"Brandon BURNETTE",13,11,0,2,0,48,"Sat","Sat","Out","Out","Out",null,"Out","Out","Out","Out","Out",null,"Out","Out","Out"]
[4,"Daisy MONIZ",12,12,0,0,0,48,"Out","Out","Out","Out","Out",null,"Out","Out","Out","Out","Out",null,"Out","Out"]
[4,"Diane METZ",11,11,0,0,0,44,"Out","Out","Out","Out","Out",null,"Out","Out","Out","Out","Out",null,"Out"]
[4,"Donald RUSS",10,10,0,0,0,40,"Out","Out","Out","Out","Out",null,"Out","Out","Out","Out","Out"]
[4,"Fred ROOKS",9,9,0,0,0,36,"Out","Out","Out","Out","Out",null,"Out","Out","Out","Out"]
[4,"Gertrude DICKENSON",8,8,0,0,0,32,"Out","Out","Out","Out","Out",null,"Out","Out","Out"]
[4,"Harry LINDLEY",7,7,0,0,0,28,"Out","Out","Out","Out","Out",null,"Out","Out"]
[4,"Keith OWENS",6,6,0,0,0,24,"Out","Out","Out","Out","Out",null,"Out"]
[4,"Krista CORSO",5,5,0,0,0,20,"Out","Out","Out","Out","Out"]
[4,"Louis SIGMAN",5,5,0,0,0,20,"Out","Out","Out","Out","Out"]
[4,"Manoj MISTRY",4,4,0,0,0,16,"Out","Out","Out","Out"]
[3.75,"Marvin LAIL",4,3,1,0,0,15,"Out","Out","Out","Good"]
[3.5,"Mildred SANDLIN",4,3,0,1,0,14,"Out","Out","Out","Sat"]
[3.25,"Philip GEIST",4,3,0,0,1,13,"Out","Out","Out","U"]
[4,"Raymond NEGRON",3,3,0,0,0,12,"Out","Out","Out"]
[3.6666666666666665,"Robert MCFARLIN",3,2,1,0,0,11,"Out","Out","Good"]
[3.3333333333333335,"Roy ARENAS",3,2,0,1,0,10,"Out","Out","Sat"]
[3,"Russell PETERS",3,2,0,0,1,9,"Out","Out","U"]
[4,"Russell BILLIOT",2,2,0,0,0,8,"Out","Out"]
[3.5,"Jon KEATS",2,1,1,0,0,7,"Out","Good"]
[3,"Kuty RUSTAMOVA",2,1,0,1,0,6,"Out","Sat"]
[2.5,"Tanya STEAD",2,1,0,0,1,5,"Out","U"]
[4,"John PIPE",1,1,0,0,0,4,"Out"]
[4,"Steve BEATON",1,1,0,0,0,4,"Out"]
[3,"Junior YEW",1,0,1,0,0,3,"Good"]
[2,"Dingle ROSS",1,0,0,1,0,2,"Sat"]
[3,"Warwick Sayers",4,0,4,0,0,12,"Good","Good","Good","Good"]
[3,"Jumble SALE",3,0,3,0,0,9,"Good","Good","Good"]
[3,"Inita SMITH",2,0,2,0,0,{"$f":"D35*4+E35*3+F45*2+G35","v":6},"Good","Good"]
[3,"Jason DERULO",1,0,1,0,0,3,"Good"]
[2,"Munchkin MOUSE",3,0,0,3,0,6,"Sat","Sat","Sat"]
[2,"Bob HOLDER",2,0,0,2,0,4,"Sat","Sat"]
[2,"Jimmy PEUX",1,0,0,1,0,2,"Sat"]
[2,"Betty DAVIS",1,0,0,1,0,2,"Sat"]
[3,"Johnston TERRY",1,0,1,0,0,3,"Good"]
[1,"Meerkat MENACE",1,0,0,0,1,1,"U"]